{"text_format":"3","workbook":"xlsx","n_sheets":3,"sheets":["Лист1","Лист2","Лист3"],"read":"whole","date_system":"1900"}

{"sheet":"Лист1","index":0,"n_rows":173,"n_cols":9,"rows_kept":173,"merged":[[0,2,0,5],[1,2,1,5],[7,0,8,0],[7,1,8,2],[7,3,8,3],[7,4,8,4],[7,5,8,5],[7,6,8,6],[9,1,9,2],[10,1,10,2],[11,1,11,2],[12,1,12,2],[13,1,13,2],[14,1,14,2],[15,1,15,2],[16,1,16,2],[17,1,17,2],[18,1,18,2],[19,1,19,2],[20,1,20,2],[21,1,21,2],[22,1,22,2],[23,1,23,2],[24,1,24,2],[25,1,25,2],[26,1,26,2],[27,1,27,2],[28,1,28,2],[29,1,29,2],[30,1,30,2],[31,1,31,2],[32,1,32,2],[33,1,33,2],[34,1,34,2],[35,1,35,2],[36,1,36,2],[37,1,37,2],[38,1,38,2],[39,1,39,2],[40,1,40,2],[41,1,41,2],[42,1,42,2],[43,1,43,2],[44,1,44,2],[45,1,45,2],[46,1,46,2],[47,1,47,2],[48,1,48,2],[49,1,49,2],[50,1,50,2],[51,1,51,2],[52,1,52,2],[53,1,53,2],[54,1,54,2],[55,1,55,2],[56,1,56,2],[57,1,57,2],[58,1,58,2],[59,1,59,2],[60,1,60,2],[61,1,61,2],[62,1,62,2],[63,1,63,2],[65,1,65,2],[66,1,66,2],[68,1,68,2],[73,2,73,4],[73,5,73,6],[77,0,77,4],[78,2,78,4],[79,2,79,4],[80,0,80,4],[81,2,81,4],[82,2,82,4],[83,2,83,4],[84,0,84,4],[85,2,85,4],[86,2,86,4],[87,0,87,4],[88,2,88,4],[89,2,89,4],[90,2,90,4],[91,2,91,4],[92,2,92,4],[93,0,93,4],[94,2,94,4],[95,2,95,4],[96,0,96,4],[97,2,97,4],[98,2,98,4],[99,2,99,4],[100,0,100,4],[101,2,101,4],[102,2,102,4],[103,2,103,4],[104,2,104,4],[105,2,105,4],[106,2,106,4],[107,2,107,4],[108,2,108,4],[109,2,109,4],[110,2,110,4],[111,2,111,4],[112,2,112,4],[113,2,113,4],[114,2,114,4],[115,2,115,4],[116,2,116,4],[117,2,117,4],[118,0,118,4],[119,2,119,4],[120,2,120,4],[121,2,121,4],[122,2,122,4],[123,2,123,4],[124,2,124,4],[125,2,125,4],[126,2,126,4],[127,2,127,4],[128,2,128,4],[129,2,129,4],[130,2,130,4],[131,2,131,4],[132,2,132,4],[133,2,133,4],[134,2,134,4],[135,2,135,4],[136,2,136,4],[137,2,137,4],[138,2,138,4],[139,2,139,4],[140,0,140,4],[141,2,141,4],[142,2,142,4],[143,2,143,4],[144,2,144,4],[145,2,145,4],[146,0,146,4],[147,2,147,4],[148,2,148,4],[149,2,149,4],[150,2,150,4],[151,2,151,4],[152,0,152,4],[153,2,153,4],[154,2,154,4],[155,2,155,4],[156,2,156,4],[157,2,157,4],[158,2,158,4],[159,2,159,4],[160,2,160,4],[161,2,161,4],[162,2,162,4],[163,2,163,4],[167,2,167,4],[168,2,168,4],[169,2,169,4],[170,2,170,4],[171,2,171,4],[172,2,172,4]]}
[null,null,"Расшифровка  сметы доходов и расходов по МБУДО \"Центр внешкольной работы\" Авиастроительного района г.Казани"]
[null,null,"от организации платных образовательных услуг на 2018 год"]
[]
["ДОХОД"]
[]
[]
[]
["п/п","Наименование услуг",null,"кол-во    детей","стоимость услуг(руб)","кол-во месяцев","итого в год(руб)"]
[]
[1,"Группы временного пребывания \"Умка\" (вечерние группы)",null,20,2000,9,583200]
[2,"Группы временного пребывания \"Умка\" (дневные группы)",null,6,2500,9,135000]
[3,"Ритмика",null,50,1000,9,450000]
[4,"Умка-бэби",null,6,1200,9,64800]
[5,"Игровые программы",null,1,1000,null,1000]
[6,{"$nulls":5},{"$f":"D15*E15*F15","v":0}]
[7,{"$nulls":5},0]
[8,{"$nulls":5},0]
[9,{"$nulls":5},0]
[10,{"$nulls":5},0]
[11,{"$nulls":5},0]
[12,{"$nulls":5},0]
[13,{"$nulls":5},0]
[14,{"$nulls":5},0]
[15,{"$nulls":5},0]
[16,{"$nulls":5},0]
[17,{"$nulls":5},0]
[18,{"$nulls":5},0]
[19,{"$nulls":5},0]
[20,{"$nulls":5},0]
[21,{"$nulls":5},0]
[22,{"$nulls":5},0]
[23,{"$nulls":5},0]
[24,{"$nulls":5},0]
[25,{"$nulls":5},0]
[26,{"$nulls":5},0]
[27,{"$nulls":5},0]
[28,{"$nulls":5},0]
[29,{"$nulls":5},0]
[30,{"$nulls":5},0]
[31,{"$nulls":5},0]
[32,{"$nulls":5},0]
[33,{"$nulls":5},0]
[34,{"$nulls":5},0]
[35,{"$nulls":5},0]
[36,{"$nulls":5},0]
[37,{"$nulls":5},0]
[38,{"$nulls":5},0]
[39,{"$nulls":5},0]
[30,{"$nulls":5},0]
[31,{"$nulls":5},0]
[32,{"$nulls":5},0]
[33,{"$nulls":5},0]
[34,{"$nulls":5},0]
[35,{"$nulls":5},0]
[36,{"$nulls":5},0]
[37,{"$nulls":5},0]
[38,{"$nulls":5},0]
[39,{"$nulls":5},0]
[40,{"$nulls":5},0]
[41,{"$nulls":5},0]
[42,{"$nulls":5},0]
[43,{"$nulls":5},0]
[44,{"$nulls":5},0]
[45,{"$nulls":5},0]
[null,"Итого платные услуги",{"$nulls":4},{"$f":"SUM(G10:G64)","v":1234000}]
[null,"Услуги охраны",{"$nulls":4},0]
[null,"Спонсорская помощь",{"$nulls":4},0]
[null,"Возмещение коммунальных услуг",{"$nulls":4},0]
[null,"Доходы от сдачи в аренду",{"$nulls":4},0]
[null,null,"ВСЕГО",{"$nulls":3},{"$f":"G65+G66+G67+G68+G69","v":{"v":1234000,"d":"1,234,000.00"}}]
[]
["РАСХОД"]
[]
["КОСГУ","Доп.ЭК","Наименование показателя",null,null,"Сумма(руб)"]
[{"$nulls":5},"платные кружки","услуги охраны, спонсорская помощь, доходы от сдачи в аренду"]
[{"$nulls":5},"ДКР 521","ДКР 523"]
[{"$nulls":5},{"$f":"G65","v":1234000},{"$f":"G66+G67+G68+G69","v":0}]
["Заработная плата",{"$nulls":7},{"$f":"(F79+F80+F86+F87)/G65","v":0.7499991896272286}]
[211,211004,"Заработная плата педагогического персонала",null,null,{"v":426497,"d":"426,497"}]
[211,211005,"Заработная плата вспомогательного персонала (руководителей, учебно-вспомогательного персонала, обслуживающего персонала)",null,null,{"v":284332,"d":"284,332"}]
["Прочие выплаты"]
[212,212004,"Возмещение работникам (сотрудникам) расходов по найму жилых помещений при служебных командировках"]
[212,212005,"Возмещение работникам (сотрудникам) расходов по проезду при служебных командировках"]
[212,212006,"Суточные работникам (сотрудникам) при служебных командировках"]
["Начисления на оплату труда"]
[213,213004,"Начисление на зарплату педагогического персонала               30,2%",null,null,{"$f":"ROUND((F79*0.302),0)","v":{"v":128802,"d":"128802.00"}}]
[213,213005,"Начисления на заработную плату вспомогательного персонала (руководителей, учебно-вспомогательного персонала, обслуживающего персонала)   30,2%",null,null,{"$f":"ROUND((F80*0.302),0)","v":{"v":85868,"d":"85868.00"}}]
["Услуги связи"]
[221,221001,"Услуги телефонной связи (абонентская и повременная плата (ежемесячный платеж) за местные, междугородные, международные переговоры)"]
[221,221002,"Плата за предоставление доступа (разовый платеж) к телефонной линии связи и Интернет",null,null,20000]
[221,221010,"Услуги сотовой связи"]
[221,221012,"Плата за услуги сети Интернет"]
[221,221099,"Прочие услуги связи"]
["Транспортные услуги"]
[222,222012,"транспортные услуги по перевозке школьников"]
[222,222010,"прочие транспортные услуги"]
["Коммунальные услуги"]
[223,223001,"Электроснабжение"]
[223,223002,"Теплоснабжение"]
[223,223004,"Водоснабжение"]
["Работы, услуги по содержанию имущества"]
[225,"225001","Обслуживание охранной и пожарной сигнализации "]
[225,"225002","Содержание в чистоте помещений, зданий, дворов, иного недвижимого имущества"]
[225,"225003","Проведение работ по ремонту и восстановлению эффективности функционирования коммунальных инженерных систем и коммуникаций, осуществляемые сверх регламентированного условиями поставки коммунальных услуг перечня работ (технологических нужд)"]
[225,"225004","Обеспечение функционирования и поддержка (восстановление) работоспособности объектов нефинансовых активов"]
[225,225007,"Текущий ремонт зданий",null,null,50000]
[225,"225009","Обеспечение функционирования и поддержка работоспособности прикладного и системного программного обеспечения"]
[225,"225010","Техническое обслуживание аппаратного обеспечения (оргтехника, медицинское оборудование, компьютерная техника и т.д.), включающее контроль технического состояния",{"$nulls":5},"заправка картриджей для автономных учреждений"]
[225,225011,"Техническое обслуживание транспортных средств"]
[225,225012,"Ремонт транспортных средств"]
[225,225013,"Технический осмотр транспортных средств"]
[225,225014,"Содержание транспортных средств (мойка и т.д.)"]
[225,225015,"Расходы на техническое обслуживание и ремонт оборудования (торговое, кухонное, офисное, лифты и т.п.)",{"$nulls":5},"заправка картриджей для буджетных учреждений"]
[225,225016,"Содержание в чистоте имущества, кроме недвижимого"]
[225,225035,"техническое ообслуживание приборов учета"]
[225,225036,"Противопожарные мероприятия (огнезащитная обработка чердачных перекрытий, замеры сопротивления изоляции, зарядка огнетушителей, опрессовка проводов)"]
[225,225037,"Содержание и ремонт объектов озеленения"]
[225,225099,"Прочие работы, услуги по содержанию имущества"]
["Прочие работы, услуги"]
[226,226001,"Подписка "]
[226,226002,"Зарплата внештатных сотрудников",null,null,45000]
[226,226003,"Организация питания "]
[226,226004,"Услуги вневедомтсвенной (в том числе пожарной) охраны"]
[226,226005,"Установка и монтаж локальных вычислительных сетей, систем охранной и пожарной сигнализации, видеонаблюдения, контроля доступа"]
[226,226006,"За участие в семинарах, совещаниях, конференциях, курсах повышения квалификации, проф.обучение, за образовательные услуги, организация и проведение совещаний, конкурсов, олимпиад, выставок, мероприятий, конференций, соревнований, экскурсий",null,null,90000]
[226,226010,"Приобретение неисключительных (пользовательский) прав на программное обеспечение (отраслевых, бухгалтерских прогамм)"]
[226,226013,"Приобретение и обновление справочно-информационных баз данных (Гарант, Консультант и др.)"]
[226,226014,"Обучение сотрудников в области информационно-коммуникационных технологий"]
[226,"226016","Монтажные и пуско-наладочные работы поставляемых технических средств в области информационно-коммуникационных технологий"]
[226,"226021","Услуги по страхованию "]
[226,226022,"Типографские работы, услуги"]
[226,226023,"Размещение объявлений, рекламы в средствах массовой информации, расходы на теле- радиопрограммы, на видеоролики"]
[226,226024,"Оплата услуг по проживанию в жилых помещениях (найм жилого помещения) при служебных командировках по договорам гражданско-правового характера (для внештатных сотрудников)"]
[226,226025,"Услуги адвокатов, нотариусов, переводчиков, экспертов, инкассаторов"]
[226,226027,"Проведение инвентаризации, паспортизации основных средств"]
[226,226031,"Оплата медицинских осмотров"]
[226,226036,"Услуги по страхованию транспортных средств (ОСАГО,КАСКО)"]
[226,226038,"Оплата за проживание в жилых помещениях (найм жилого помещения) при служебных командировках работников (сотрудников)"]
[226,226050,"Услуги охраны с помощью кнопки тревожной сигнализации (КТС)"]
[226,226099,"Прочие работы, услуги",null,null,53501]
["Прочие расходы"]
[290,290003,"Штрафы, пени и другие экономические санкции",null,null,50000]
[290,290005,"Прочие налоги, в т.ч. госпошлины"]
[290,290007,"Возмещение морального вреда по решению судебных органов и оплата судебных издержек"]
[290,290011,"Приобретение (изготовление) подарочной и сувенирной продукции (позравительные открытки, адреса, почетные грамоты, дипломы, благодарственные письма, цветы, сувенирная продукция, медали, кубки, призы, подарки)"]
[290,290099,"Прочие расходы"]
["Увеличение стоимости основных средств"]
[310,"310001","Приобретение огнетушителей"]
[310,"310004","Приобретение автоматизированных рабочих мест, транспортно-коммуникационного оборудования, серверного, периферийного и т.п. оборудования"]
[310,"310006","Приобретение медицинского инструментария"]
[310,"310007","Приобретение основных средств (оборудования, мебели, транспортных средств, техники, инструментов, хозинвентаря, книги и т. д.)"]
[310,310099,"Прочие расходы по увеличению стоимости основных средств"]
["Увеличение стоимости материальных запасов"]
[340,340002,"Закупка мягкого инвентаря, одежды, обмундирования"]
[340,340003,"Закупка запчастей к  оборудованию"]
[340,340004,"Закупка материалов, используемых в процессе обучения"]
[340,340005,"Продукты питания (за исключением молока и молочных продуктов)"]
[340,340006,"Закупка медикаментов, перевязочных средств                  "]
[340,340013,"Закупка запчастей к транспортным средствам"]
[340,340014,"Приобретение автошин"]
[340,340015,"Моторные масла и спец.смазки"]
[340,"340017","Приобретение канцелярских, хозяйственных товаров, расходных материалов"]
[340,340018,"Закупка молока и молочных продуктов"]
[340,340099,"Прочие расходы по увеличению стоимости материальных запасов"]
[null,"ВСЕГО:",{"$nulls":3},{"$f":"SUM(F79:F164)","v":{"v":1234000,"d":"1,234,000.00"}},{"$f":"SUM(G79:G164)","v":{"v":0,"d":"0.00"}}]
[]
[]
[221,221002,"Плата за предоставление доступа (разовый платеж) к телефонной линии связи и Интернет",null,null,20000]
[225,225007,"Текущий ремонт зданий",null,null,50000]
[226,226002,"Зарплата внештатных сотрудников",null,null,45000]
[226,226006,"За участие в семинарах, совещаниях, конференциях, курсах повышения квалификации, проф.обучение, за образовательные услуги, организация и проведение совещаний, конкурсов, олимпиад, выставок, мероприятий, конференций, соревнований, экскурсий",null,null,90000]
[226,226099,"Прочие работы, услуги (установка противопожарных дверей) 4шт.*13375,25",null,null,53501]
[290,290003,"Штрафы, пени и другие экономические санкции",null,null,50000]

{"sheet":"Лист2","index":1,"n_rows":0,"n_cols":0,"rows_kept":0}

{"sheet":"Лист3","index":2,"n_rows":0,"n_cols":0,"rows_kept":0}